bitfinex-derivatives/quotes_BTCF0:USTF0_20250629
["timestamp","ask_amount","ask_price","bid_price","bid_amount"]
[1751225458087,0.2806648,107600.0,107590.0,1.15258949]
[1751225458282,0.2806648,107600.0,107590.0,1.58338949]
[1751225477104,0.2806648,107600.0,107590.0,1.50911561]
[1751225477299,0.2806648,107600.0,107590.0,1.56486603]
[1751225482110,0.2806648,107600.0,107590.0,1.00486603]
[1751225482304,0.2806648,107600.0,107590.0,1.56422603]
[1751225486017,0.2806648,107600.0,107590.0,1.00486603]
[1751225486215,0.3132648,107600.0,107590.0,1.56422603]
[1751225488317,0.3132648,107600.0,107590.0,1.20342603]
[1751225488518,0.3132648,107600.0,107590.0,1.56422603]
[1751225488917,0.3132648,107600.0,107590.0,1.50847561]
[1751225489915,0.3132648,107600.0,107590.0,1.58274949]
[1751225491109,0.3132648,107600.0,107590.0,1.22194949]
[1751225491314,0.3132648,107600.0,107590.0,1.58274949]
[1751225497018,0.3132648,107600.0,107590.0,1.22194949]
[1751225497319,0.3132648,107600.0,107590.0,1.58274949]
[1751225498324,0.3132648,107600.0,107590.0,1.22194949]
[1751225498623,0.3132648,107600.0,107590.0,1.58274949]
[1751225499620,0.3132648,107600.0,107590.0,1.22194949]
[1751225499825,0.3132648,107600.0,107590.0,1.58274949]
[1751225503625,0.3132648,107600.0,107590.0,1.22194949]
[1751225503828,0.3132648,107600.0,107590.0,1.58274949]
[1751225504029,0.3132648,107600.0,107590.0,1.22194949]
[1751225504229,0.3132648,107600.0,107590.0,1.58274949]
[1751225507936,0.3132648,107600.0,107590.0,1.22194949]
[1751225508134,0.3132648,107600.0,107590.0,1.58274949]
[1751225510737,0.3132648,107600.0,107590.0,1.50847561]
[1751225511435,0.3132648,107600.0,107590.0,1.58284799]
[1751225511936,0.3132648,107600.0,107590.0,1.22204799]
[1751225512139,0.3132648,107600.0,107590.0,1.58284799]
[1751225520642,0.3132648,107600.0,107590.0,1.58284687]
[1751225524940,0.3132648,107600.0,107590.0,1.32153684]
[1751225525146,0.3132648,107600.0,107590.0,1.58284687]
[1751225546069,0.3132648,107600.0,107590.0,1.22204687]
[1751225546270,0.3132648,107600.0,107590.0,1.58284687]
[1751225546976,0.3132648,107600.0,107590.0,1.50847449]
[1751225548375,0.132,107600.0,107590.0,1.88566452]
[1751225548680,0.1867918,107630.0,107620.0,0.1486377]
[1751225548978,0.121,107630.0,107620.0,1.99302867]
[1751225549182,0.121,107630.0,107620.0,2.0301558]
[1751225549474,0.121,107630.0,107620.0,1.99302867]
[1751225549780,0.125,107630.0,107620.0,1.99302867]
[1751225549970,0.125,107630.0,107620.0,1.93726142]
[1751225550174,0.125,107630.0,107620.0,1.99290702]
[1751225551571,0.125,107630.0,107620.0,2.00742905]
[1751225551768,0.129,107630.0,107620.0,2.10512905]
[1751225552178,0.2776239,107630.0,107620.0,2.10512905]
[1751225553276,0.3097239,107630.0,107620.0,2.10512905]
[1751225553780,0.3429239,107630.0,107620.0,1.84042905]
[1751225554579,0.3429239,107630.0,107620.0,1.82590702]
[1751225556181,0.3429239,107630.0,107620.0,1.86293225]
[1751225558881,0.3429239,107630.0,107620.0,0.59855449]
[1751225559076,1.32503393,107630.0,107620.0,0.6198177]
[1751225559276,1.32503393,107630.0,107620.0,1.0499377]
[1751225559579,1.32503393,107630.0,107620.0,0.07987007]
[1751225559777,1.32503393,107630.0,107620.0,0.63999007]
[1751225559977,1.32503393,107630.0,107620.0,0.58788118]
[1751225560178,0.8337239,107630.0,107620.0,0.58788118]
[1751225560378,1.09503393,107630.0,107620.0,0.58788118]
[1751225561788,1.22267393,107630.0,107620.0,0.02776118]
[1751225562186,0.1486377,107620.0,107610.0,0.32609644]
[1751225562386,1.01264773,107620.0,107610.0,0.32609644]
[1751225562584,1.01264773,107620.0,107610.0,0.06478641]
[1751225562789,1.01264773,107620.0,107610.0,0.02776118]
[1751225563885,1.01464773,107620.0,107610.0,0.02776118]
[1751225564082,1.01464773,107620.0,107610.0,0.28907121]
[1751225564483,1.01664773,107620.0,107610.0,0.28907121]
[1751225571192,1.01664773,107620.0,107610.0,0.32609644]
[1751225573594,1.57684773,107620.0,107610.0,0.32609644]
[1751225574296,1.91684773,107620.0,107610.0,0.32609644]
[1751225574494,1.91684773,107620.0,107610.0,0.06478641]
[1751225577996,1.55604773,107620.0,107610.0,0.06478641]
[1751225578197,1.91684773,107620.0,107610.0,0.06478641]
[1751225583099,1.91684773,107620.0,107610.0,0.03702523]
[1751225585102,1.91684773,107620.0,107610.0,0.09267083]
[1751225588403,1.91684773,107620.0,107610.0,0.35398086]
[1751225589201,1.91684773,107620.0,107610.0,0.31695563]
[1751225590293,1.6552177,107620.0,107610.0,0.46560713]
[1751225590805,1.0953377,107620.0,107610.0,0.53060713]
[1751225593906,1.35664773,107620.0,107610.0,0.53060713]
[1751225596305,1.35664773,107620.0,107610.0,0.49890713]
[1751225600009,1.48472773,107620.0,107610.0,0.49890713]
[1751225601810,1.48472773,107620.0,107610.0,0.46560713]
[1751225610218,1.2234177,107620.0,107610.0,0.48003551]
[1751225610518,1.48472773,107620.0,107610.0,0.48003551]
[1751225611313,1.2234177,107620.0,107610.0,0.48003551]
[1751225618122,1.48472773,107620.0,107610.0,0.48003551]
[1751225624828,1.48472773,107620.0,107610.0,0.46560713]
[1751225626127,1.2234177,107620.0,107610.0,0.46560713]
[1751225627924,1.48472773,107620.0,107610.0,0.46560713]
[1751225628827,1.48472773,107620.0,107610.0,0.48003367]
[1751225629426,1.2234177,107620.0,107610.0,0.48003367]
[1751225631931,1.2234177,107620.0,107610.0,0.46560713]
[1751225636129,1.48472773,107620.0,107610.0,0.46560713]
[1751225639132,1.48472773,107620.0,107610.0,0.40996153]
[1751225640330,1.2234177,107620.0,107610.0,0.40996153]
[1751225647240,1.1315177,107620.0,107610.0,0.40996153]
[1751225650938,1.2286177,107620.0,107610.0,0.40996153]
[1751225651638,1.2286177,107620.0,107610.0,0.46573407]
[1751225655541,1.48992773,107620.0,107610.0,0.46573407]
[1751225656042,1.2286177,107620.0,107610.0,0.46573407]
[1751225658838,1.2286177,107620.0,107610.0,0.40996153]
[1751225664636,1.2286177,107620.0,107610.0,0.1486515]
[1751225664840,1.2286177,107620.0,107610.0,0.40996153]
[1751225665039,1.48992773,107620.0,107610.0,0.40996153]
[1751225668846,1.48992773,107620.0,107610.0,0.46573345]
[1751225674457,1.48992773,107620.0,107610.0,0.31708195]
[1751225676050,1.2286177,107620.0,107610.0,0.31708195]
[1751225676349,1.48992773,107620.0,107610.0,0.31708195]
[1751225676650,1.12912773,107620.0,107610.0,0.31708195]
[1751225676851,1.48992773,107620.0,107610.0,0.31708195]
[1751225679340,1.48992773,107620.0,107610.0,0.42708195]
[1751225685055,1.12912773,107620.0,107610.0,0.42708195]
[1751225685263,1.48992773,107620.0,107610.0,0.42708195]
[1751225691555,1.12912773,107620.0,107610.0,0.42708195]
[1751225691861,1.48992773,107620.0,107610.0,0.42708195]
[1751225694063,1.12912773,107620.0,107610.0,0.42708195]
[1751225694362,1.48992773,107620.0,107610.0,0.42708195]
[1751225698065,1.48992773,107620.0,107610.0,0.37131003]
[1751225698962,1.12912773,107620.0,107610.0,0.37131003]
[1751225699166,1.48992773,107620.0,107610.0,0.37131003]
[1751225702971,1.12912773,107620.0,107610.0,0.37131003]
[1751225703271,1.48992773,107620.0,107610.0,0.37131003]
[1751225707170,1.12912773,107620.0,107610.0,0.37131003]
[1751225707372,1.48992773,107620.0,107610.0,0.37131003]
[1751225709074,1.12912773,107620.0,107610.0,0.37131003]
[1751225709275,1.48992773,107620.0,107610.0,0.37131003]
[1751225710268,1.12912773,107620.0,107610.0,0.37131003]
[1751225710575,1.48992773,107620.0,107610.0,0.37131003]
[1751225712276,1.48992773,107620.0,107610.0,0.42708267]
[1751225716177,1.12912773,107620.0,107610.0,0.42708267]
[1751225716381,1.48992773,107620.0,107610.0,0.42708267]
[1751225717177,1.12912773,107620.0,107610.0,0.42708267]
[1751225717378,1.48992773,107620.0,107610.0,0.42708267]
[1751225717777,0.1486514,107610.0,107600.0,0.07435633]
[1751225717974,1.87270143,107610.0,107600.0,0.29435633]
[1751225718175,1.87270143,107610.0,107600.0,0.22]
[1751225718479,1.87270143,107610.0,107600.0,0.25717189]
[1751225718678,1.87270143,107610.0,107600.0,0.05717189]
[1751225718879,1.87370143,107610.0,107600.0,0.05717189]
[1751225719380,1.94664316,107610.0,107600.0,0.0850389]
[1751225719775,1.94664316,107610.0,107600.0,0.0650389]
[1751225722281,1.94664316,107610.0,107600.0,0.06502209]
[1751225724585,1.68533313,107610.0,107600.0,0.06502209]
[1751225724784,1.94664316,107610.0,107600.0,0.06502209]
[1751225729988,0.1486653,107600.0,107590.0,0.01549696]
[1751225730187,0.1486653,107600.0,107590.0,0.02993117]
[1751225730188,1.70634536,107600.0,107590.0,0.02993117]
[1751225731390,1.70634536,107600.0,107590.0,0.03093117]
[1751225732489,1.70634536,107600.0,107590.0,0.01649696]
[1751225740697,1.1837253,107600.0,107590.0,0.27780699]
[1751225740900,1.44503533,107600.0,107590.0,0.27780699]
[1751225746794,1.70634536,107600.0,107590.0,0.27780699]
[1751225750302,1.34554536,107600.0,107590.0,0.27780699]
[1751225750600,1.70634536,107600.0,107590.0,0.27780699]
[1751225753897,1.34554536,107600.0,107590.0,0.27780699]
[1751225754097,1.70634536,107600.0,107590.0,0.27780699]
[1751225755101,1.34554536,107600.0,107590.0,0.27780699]
[1751225755302,1.70634536,107600.0,107590.0,0.27780699]
[1751225756001,1.34554536,107600.0,107590.0,0.27780699]
[1751225756203,1.34554536,107600.0,107590.0,0.33344889]
[1751225756399,1.70634536,107600.0,107590.0,0.33344889]
[1751225757502,1.70634536,107600.0,107590.0,0.34797638]
[1751225758106,1.34554536,107600.0,107590.0,0.34797638]
[1751225758300,1.70634536,107600.0,107590.0,0.34797638]
[1751225760006,1.70634536,107600.0,107590.0,0.38514315]
[1751225763618,1.34554536,107600.0,107590.0,0.38514315]
[1751225763916,1.70634536,107600.0,107590.0,0.38514315]
[1751225771028,1.34554536,107600.0,107590.0,0.38514315]
[1751225771329,1.70634536,107600.0,107590.0,0.38514315]
[1751225776241,1.1837253,107600.0,107590.0,0.38514315]
[1751225776443,1.44503533,107600.0,107590.0,0.38514315]
[1751225777042,1.08423533,107600.0,107590.0,0.38514315]
[1751225777237,1.44503533,107600.0,107590.0,0.38514315]
[1751225778644,1.08423533,107600.0,107590.0,0.38514315]
[1751225778944,1.44503533,107600.0,107590.0,0.38514315]
[1751225779141,1.70634536,107600.0,107590.0,0.38514315]
[1751225782643,1.34554536,107600.0,107590.0,0.38514315]
[1751225782843,1.70634536,107600.0,107590.0,0.38514315]
[1751225783048,1.44503533,107600.0,107590.0,0.38514315]
[1751225783553,1.1837253,107600.0,107590.0,0.38514315]
[1751225783751,1.70634536,107600.0,107590.0,0.38514315]
[1751225784450,1.1837253,107600.0,107590.0,0.38514315]
[1751225784652,1.70634536,107600.0,107590.0,0.38514315]
[1751225786651,1.44503533,107600.0,107590.0,0.38514315]
[1751225787852,1.1837253,107600.0,107590.0,0.38514315]
[1751225788053,1.44503533,107600.0,107590.0,0.38514315]
[1751225792058,1.70634536,107600.0,107590.0,0.38514315]
[1751225792455,1.70634536,107600.0,107590.0,0.12383312]
[1751225792655,1.70634536,107600.0,107590.0,0.38514315]
[1751225795463,1.70634536,107600.0,107590.0,0.12383312]
[1751225795658,1.70634536,107600.0,107590.0,0.38514315]
[1751225797560,1.44503533,107600.0,107590.0,0.38514315]
[1751225800164,1.08423533,107600.0,107590.0,0.38514315]
[1751225800460,1.44503533,107600.0,107590.0,0.38514315]
[1751225802261,1.44503533,107600.0,107590.0,0.32950125]
[1751225807466,1.44503533,107600.0,107590.0,0.06819122]
[1751225807667,1.44503533,107600.0,107590.0,0.32950125]
[1751225809567,1.70634536,107600.0,107590.0,0.32950125]
[1751225810370,1.44503533,107600.0,107590.0,0.38514315]
[1751225810870,1.44503533,107600.0,107590.0,0.32950125]
[1751225812376,1.44503533,107600.0,107590.0,0.38514315]
[1751225815174,1.08423533,107600.0,107590.0,0.38514315]
[1751225815367,1.44503533,107600.0,107590.0,0.38514315]
[1751225816270,1.08423533,107600.0,107590.0,0.38514315]
[1751225816472,1.44503533,107600.0,107590.0,0.38514315]
[1751225818270,1.08423533,107600.0,107590.0,0.38514315]
[1751225818473,1.44503533,107600.0,107590.0,0.38514315]
[1751225819874,1.44503533,107600.0,107590.0,0.38514326]
[1751225820069,1.44503533,107600.0,107590.0,0.12383323]
[1751225820282,1.44503533,107600.0,107590.0,0.38514326]
[1751225820970,1.08423533,107600.0,107590.0,0.38514326]
[1751225821169,1.44503533,107600.0,107590.0,0.38514326]
[1751225823279,1.70634536,107600.0,107590.0,0.38514326]
[1751225823470,1.70434536,107600.0,107590.0,0.12383323]
[1751225823868,1.70434536,107600.0,107590.0,0.38514326]
[1751225825876,1.34354536,107600.0,107590.0,0.38514326]
[1751225826069,1.34354536,107600.0,107590.0,0.12383323]
[1751225826070,1.70434536,107600.0,107590.0,0.12383323]
[1751225830583,1.70434536,107600.0,107590.0,0.10930563]
[1751225837092,1.70434536,107600.0,107590.0,0.05366373]
[1751225840996,1.70434536,107600.0,107590.0,0.03816677]
[1751225843903,1.34354536,107600.0,107590.0,0.03816677]
[1751225844104,1.70434536,107600.0,107590.0,0.03816677]
[1751225844907,1.1817253,107600.0,107590.0,0.03816677]
[1751225845202,1.70434536,107600.0,107590.0,0.03816677]
[1751225852412,1.70434536,107600.0,107590.0,0.06605272]
[1751225853112,1.70434536,107600.0,107590.0,0.08058058]
[1751225854614,1.70434536,107600.0,107590.0,0.06605272]
[1751225857315,1.70434536,107600.0,107590.0,0.08058058]
[1751225858117,1.70434536,107600.0,107590.0,0.34189061]
[1751225858915,1.34354536,107600.0,107590.0,0.34189061]
[1751225859315,1.70434536,107600.0,107590.0,0.34189061]
[1751225862322,1.70434536,107600.0,107590.0,0.36964656]
[1751225862923,1.34354536,107600.0,107590.0,0.36964656]
[1751225863323,1.70434536,107600.0,107590.0,0.36964656]
[1751225864223,1.34354536,107600.0,107590.0,0.36964656]
[1751225864424,1.70434536,107600.0,107590.0,0.36964656]
[1751225865826,1.70434536,107600.0,107590.0,0.10833653]
[1751225866028,1.70434536,107600.0,107590.0,0.36964656]
[1751225868020,1.70434536,107600.0,107590.0,0.10833653]
[1751225873226,1.34354536,107600.0,107590.0,0.10833653]
[1751225873425,1.70434536,107600.0,107590.0,0.09380867]
[1751225873929,1.34354536,107600.0,107590.0,0.09380867]
[1751225874130,1.70434536,107600.0,107590.0,0.09380867]
[1751225874936,1.34354536,107600.0,107590.0,0.09380867]
[1751225875231,1.70434536,107600.0,107590.0,0.09380867]
[1751225879030,1.34354536,107600.0,107590.0,0.09380867]
[1751225879233,1.70434536,107600.0,107590.0,0.09380867]
[1751225884645,1.60784536,107600.0,107590.0,0.09380867]
[1751225885239,1.70054536,107600.0,107590.0,0.09380867]
[1751225890642,1.70054536,107600.0,107590.0,0.10833654]
[1751225890643,1.33974536,107600.0,107590.0,0.10833654]
[1751225890834,1.70054536,107600.0,107590.0,0.10833654]
[1751225892746,1.70054536,107600.0,107590.0,0.08058813]
[1751225896139,1.80022657,107600.0,107590.0,0.08058813]
[1751225902648,1.80022657,107600.0,107590.0,0.10833654]
[1751225905752,1.27760651,107600.0,107590.0,0.10833654]
[1751225905951,1.80022657,107600.0,107590.0,0.10833654]
[1751225908655,1.43942657,107600.0,107590.0,0.10833654]
[1751225908854,1.80022657,107600.0,107590.0,0.10833654]
[1751225912168,1.43942657,107600.0,107590.0,0.10833654]
[1751225912368,1.80022657,107600.0,107590.0,0.10833654]
[1751225915172,1.43942657,107600.0,107590.0,0.10833654]
[1751225915363,1.80022657,107600.0,107590.0,0.10833654]
[1751225920473,1.80022657,107600.0,107590.0,0.09380867]
[1751225930575,1.80022657,107600.0,107590.0,0.10833654]
[1751225931879,1.43942657,107600.0,107590.0,0.10833654]
[1751225932079,1.80022657,107600.0,107590.0,0.10833654]
[1751225935584,1.43942657,107600.0,107590.0,0.10833654]
[1751225935784,1.80022657,107600.0,107590.0,0.10833654]
[1751225935976,1.43942657,107600.0,107590.0,0.10833654]
[1751225936176,1.80022657,107600.0,107590.0,0.10833654]
[1751225936582,1.80022657,107600.0,107590.0,0.09380867]
[1751225938284,1.80022657,107600.0,107590.0,0.10833654]
[1751225939885,1.43942657,107600.0,107590.0,0.10833654]
[1751225940083,1.80022657,107600.0,107590.0,0.10833654]
[1751225942688,1.80022657,107600.0,107590.0,0.08058816]
[1751225945285,1.43942657,107600.0,107590.0,0.08058816]
[1751225945484,1.80022657,107600.0,107590.0,0.08058816]
[1751225947280,1.43942657,107600.0,107590.0,0.08058816]
[1751225947486,1.80022657,107600.0,107590.0,0.08058816]
[1751225952690,1.80022657,107600.0,107590.0,0.10833654]
[1751225955994,1.43942657,107600.0,107590.0,0.10833654]
[1751225956193,1.80022657,107600.0,107590.0,0.10833654]
[1751225958092,1.80022657,107600.0,107590.0,0.05269464]
[1751225961688,0.148679,107590.0,107580.0,0.0556419]
[1751225961988,1.92434903,107590.0,107580.0,0.07017003]
[1751225962895,1.92434903,107590.0,107580.0,0.07217003]
[1751225963094,1.92434903,107590.0,107580.0,0.01652813]
[1751225963291,1.92434903,107590.0,107580.0,0.005]
[1751225963796,2.18565906,107590.0,107580.0,0.005]
[1751225964295,2.18565906,107590.0,107580.0,0.03287535]
[1751225964494,2.28510369,107590.0,107580.0,0.03287535]
[1751225970994,2.28510369,107590.0,107580.0,0.04691416]
[1751225973894,2.28510369,107590.0,107580.0,0.04491416]
[1751225974500,0.1486926,107580.0,107570.0,0.0556419]
[1751225974697,1.69307266,107580.0,107570.0,0.0556419]
[1751225975804,1.69307266,107580.0,107570.0,0.0576419]
[1751225976104,1.69307266,107580.0,107570.0,0.0596419]
[1751225977201,1.69307266,107580.0,107570.0,0.004]
[1751225978305,1.70257008,107580.0,107570.0,0.004]
[1751225980905,1.80376217,107580.0,107570.0,0.004]
[1751225986513,1.80376217,107580.0,107570.0,0.01815069]
[1751225989417,1.80576217,107580.0,107570.0,0.01615069]
[1751225990214,1.44496217,107580.0,107570.0,0.01615069]
[1751225990425,0.1487068,107570.0,107560.0,0.00092967]
[1751225990627,2.12556686,107570.0,107560.0,0.00092967]
[1751225990829,1.86425683,107570.0,107560.0,0.00092967]
[1751225991830,1.86425683,107570.0,107560.0,0.03807219]
[1751225992129,2.22687137,107570.0,107560.0,0.03807219]
[1751225992422,2.22687137,107570.0,107560.0,0.03907219]
[1751225993326,2.22687137,107570.0,107560.0,0.00192967]
[1751225994027,2.58767137,107570.0,107560.0,0.00192967]
[1751225994622,1.86607137,107570.0,107560.0,0.00192967]
[1751225994824,2.58767137,107570.0,107560.0,0.00192967]
[1751225998934,1.86607137,107570.0,107560.0,0.00192967]
[1751225999227,2.58767137,107570.0,107560.0,0.00192967]
[1751226002425,2.58767137,107570.0,107560.0,0.01619613]
[1751226008131,2.58767137,107570.0,107550.0,0.09278442]
[1751226008132,0.1487205,107560.0,107550.0,0.09278442]
[1751226008332,1.75704056,107560.0,107550.0,0.34160599]
[1751226009934,1.75704056,107560.0,107550.0,0.34360599]
[1751226016333,1.39624056,107560.0,107550.0,0.34360599]
[1751226016537,1.75704056,107560.0,107550.0,0.34360599]
[1751226016736,1.75704056,107560.0,107550.0,0.32907346]
[1751226018142,1.75704056,107560.0,107550.0,0.34360619]
[1751226018935,1.39624056,107560.0,107550.0,0.34360619]
[1751226019141,1.75704056,107560.0,107550.0,0.34360619]
[1751226022643,1.75704056,107560.0,107550.0,0.12360619]
[1751226025146,1.39624056,107560.0,107550.0,0.12360619]
[1751226025341,1.75704056,107560.0,107550.0,0.12360619]
[1751226026147,2.12252246,107560.0,107550.0,0.04925209]
[1751226026342,1.86121243,107560.0,107550.0,0.04925269]
[1751226026542,2.12252246,107560.0,107550.0,0.03471936]
[1751226027944,2.12452246,107560.0,107550.0,0.03371936]
[1751226028349,2.12452246,107560.0,107550.0,0.01528904]
[1751226029445,0.1487481,107540.0,107530.0,0.15087183]
[1751226029645,1.81996816,107540.0,107530.0,0.38536826]
[1751226030144,1.93389047,107540.0,107530.0,0.38536826]
[1751226030351,1.66389047,107540.0,107530.0,0.38536826]
[1751226030649,1.66389047,107540.0,107530.0,0.38636826]
[1751226030849,1.40258044,107540.0,107530.0,0.64767829]
[1751226031537,1.40258044,107540.0,107520.0,0.91962886]
[1751226031538,0.1487619,107530.0,107520.0,0.02783463]
[1751226031740,0.1487619,107530.0,107500.0,0.33498486]
[1751226031741,0.1487898,107510.0,107500.0,0.33498486]
[1751226031946,1.59869983,107510.0,107500.0,0.80629489]
[1751226032140,1.59869983,107510.0,107500.0,0.76724022]
[1751226033348,1.59869983,107510.0,107500.0,0.50593019]
[1751226033747,1.60817669,107510.0,107500.0,0.50593019]
[1751226034252,1.26817669,107510.0,107500.0,0.50593019]
[1751226034453,1.26817669,107510.0,107500.0,0.77324022]
[1751226035855,1.26817669,107510.0,107500.0,0.92204382]
[1751226036953,1.26817669,107510.0,107500.0,0.51193019]
[1751226037152,1.26817669,107510.0,107500.0,0.92204382]
[1751226041452,1.26817669,107510.0,107500.0,0.93651869]
[1751226041651,1.30037669,107510.0,107500.0,0.93651869]
[1751226042552,2.18299675,107510.0,107500.0,0.22140506]
[1751226042757,1.36809411,107510.0,107500.0,0.22140506]
[1751226042957,2.77993411,107510.0,107500.0,0.22140506]
[1751226043155,2.08969411,107510.0,107500.0,0.22140506]
[1751226043352,2.77993411,107510.0,107500.0,0.22140506]
[1751226043756,2.51914943,107510.0,107500.0,0.22140506]
[1751226043958,2.52014943,107510.0,107500.0,0.21540506]
[1751226044154,2.52014943,107510.0,107500.0,0.21640506]
[1751226052567,2.52014943,107510.0,107500.0,0.20193019]
[1751226053165,2.52014943,107510.0,107500.0,0.21647126]
[1751226053366,2.55194943,107510.0,107500.0,0.20193019]
[1751226054166,2.55194943,107510.0,107500.0,0.21647126]
[1751226054769,2.55194943,107510.0,107500.0,0.20193019]
[1751226059473,2.55194943,107510.0,107500.0,0.21636661]
[1751226060572,2.55234943,107510.0,107500.0,0.20193019]
[1751226061169,2.19154943,107510.0,107500.0,0.20193019]
[1751226061372,2.19154943,107510.0,107500.0,0.21638042]
[1751226064172,0.1488174,107490.0,107480.0,0.08263112]
[1751226064374,1.22125278,107490.0,107480.0,0.29263112]
[1751226064573,1.31935278,107490.0,107480.0,0.29263112]
[1751226065176,1.31935278,107490.0,107480.0,0.29663112]
[1751226065877,1.31937683,107490.0,107480.0,0.29863112]
[1751226067478,1.31938725,107490.0,107480.0,0.29863112]
[1751226067874,1.63938725,107490.0,107480.0,0.29863112]
[1751226068472,1.31938725,107490.0,107480.0,0.29863112]
[1751226068672,1.62938725,107490.0,107480.0,0.29863112]
[1751226069475,1.31938725,107490.0,107480.0,0.29863112]
[1751226069676,1.67938725,107490.0,107480.0,0.29863112]
[1751226070267,2.04018725,107490.0,107480.0,0.29863112]
[1751226071271,2.04018725,107490.0,107480.0,0.35410989]
[1751226071472,1.68018725,107490.0,107480.0,0.35410989]
[1751226071673,1.68018725,107490.0,107480.0,0.38630989]
[1751226071869,1.68018725,107490.0,107480.0,0.41650989]
[1751226073373,1.68018725,107490.0,107480.0,0.37949536]
[1751226074776,2.06018725,107490.0,107480.0,0.37949536]
[1751226074975,1.68018725,107490.0,107480.0,0.37949536]
[1751226075376,2.05018725,107490.0,107480.0,0.37949536]
[1751226076279,2.05018725,107490.0,107480.0,0.39377581]
[1751226076481,1.68018725,107490.0,107480.0,0.39377581]
[1751226076683,2.02018725,107490.0,107480.0,0.39377581]
[1751226076885,2.02018725,107490.0,107480.0,0.36357581]
[1751226077083,2.02018725,107490.0,107480.0,0.34835922]
[1751226077388,2.00018725,107490.0,107480.0,0.34835922]
[1751226077579,2.04018725,107490.0,107480.0,0.34835922]
[1751226077776,1.68018725,107490.0,107480.0,0.34835922]
[1751226079486,1.68018725,107490.0,107480.0,0.35336485]
[1751226079883,1.68018725,107490.0,107480.0,0.14336485]
[1751226080080,2.06018725,107490.0,107480.0,0.14336485]
[1751226080285,2.01018725,107490.0,107480.0,0.14336485]
[1751226081690,2.01018725,107490.0,107480.0,0.11296485]
[1751226082995,2.2720571,107490.0,107480.0,0.05748608]
[1751226083486,2.2720571,107490.0,107480.0,0.11296485]
[1751226083688,2.37515628,107490.0,107480.0,0.05748608]
[1751226085192,0.1488313,107480.0,107470.0,0.03612499]
[1751226085393,0.148859,107460.0,107450.0,0.2]
[1751226085587,2.1533987,107460.0,107450.0,0.41]
[1751226085892,1.95529967,107460.0,107450.0,0.2]
[1751226086094,1.26529967,107460.0,107450.0,0.2]
[1751226086294,1.95529967,107460.0,107450.0,0.2]
[1751226086888,2.03132021,107460.0,107450.0,0.2]
[1751226087595,2.03132021,107460.0,107450.0,0.201]
[1751226087999,2.03132021,107460.0,107450.0,0.203]
[1751226092497,1.76927954,107460.0,107450.0,0.283]
[1751226092998,2.03132021,107460.0,107450.0,0.283]
[1751226093398,2.03132021,107460.0,107450.0,0.281]
[1751226093598,1.34132021,107460.0,107450.0,0.28]
[1751226093799,2.03132021,107460.0,107450.0,0.28]
[1751226093992,1.34132021,107460.0,107450.0,0.28]
[1751226094199,2.03132021,107460.0,107450.0,0.28]
[1751226096596,2.03132021,107460.0,107450.0,0.29454587]
[1751226096998,2.03132021,107460.0,107450.0,0.32744587]
[1751226097203,2.03128021,107460.0,107450.0,0.34187133]
[1751226098402,2.06288021,107460.0,107450.0,0.34187133]
[1751226099002,2.06284021,107460.0,107450.0,0.34187133]
[1751226099400,2.06284021,107460.0,107450.0,0.32732546]
[1751226099902,0.80087954,107460.0,107450.0,0.44329826]
[1751226100095,1.00619954,107460.0,107450.0,0.80073893]
[1751226100299,1.00619954,107460.0,107450.0,0.53869826]
[1751226100499,0.930179,107460.0,107450.0,0.53869826]
[1751226102006,0.368859,107460.0,107450.0,0.53869826]
[1751226104212,0.368859,107460.0,107450.0,0.55324355]
[1751226104604,0.338859,107460.0,107450.0,0.55324355]
[1751226104804,0.338859,107460.0,107450.0,0.53869826]
[1751226105006,0.338859,107460.0,107450.0,0.55324355]
[1751226110009,0.338859,107460.0,107450.0,0.81528422]
[1751226111313,0.371059,107460.0,107450.0,0.55324355]
[1751226111511,0.435359,107460.0,107450.0,0.55324355]
[1751226111813,0.6973317,107460.0,107450.0,0.81521625]
[1751226112013,0.6973317,107460.0,107450.0,0.78301625]
[1751226113012,0.6973317,107460.0,107450.0,0.71981625]
[1751226113406,0.71859846,107460.0,107450.0,0.71981625]
[1751226113602,0.6973317,107460.0,107450.0,0.71981625]
[1751226114417,0.71861029,107460.0,107450.0,0.71981625]
[1751226115415,0.71861029,107460.0,107450.0,0.7754241]
[1751226122216,0.71861029,107460.0,107450.0,0.71981625]
[1751226129221,0.71861029,107460.0,107450.0,0.7754241]
[1751226130023,0.71861029,107460.0,107450.0,0.76099864]
[1751226131322,0.71861029,107460.0,107450.0,0.74645335]
[1751226135221,0.45663759,107460.0,107450.0,0.74645335]
[1751226135523,0.71861029,107460.0,107450.0,0.74645335]
[1751226142020,0.71861029,107460.0,107450.0,0.7608559]
[1751226142327,0.71861029,107460.0,107450.0,0.77540115]
[1751226147531,0.74861029,107460.0,107450.0,0.77540115]
[1751226170754,0.74861029,107460.0,107450.0,1.33584115]
[1751226203081,0.74861029,107460.0,107450.0,1.2802333]
[1751226207790,0.74861029,107460.0,107450.0,1.33584115]
[1751226214996,0.74861029,107460.0,107450.0,1.07386845]
[1751226215187,0.74861029,107460.0,107450.0,1.33584115]
[1751226217002,0.48663759,107460.0,107450.0,1.33584115]
[1751226217197,0.74861029,107460.0,107450.0,1.33584115]
[1751226232911,0.48663759,107460.0,107450.0,1.33584115]
[1751226233112,0.74861029,107460.0,107450.0,1.33584115]
[1751226238706,0.48663759,107460.0,107450.0,1.33584115]
[1751226238910,0.74861029,107460.0,107450.0,1.33584115]
[1751226243115,0.74861029,107460.0,107450.0,1.2802333]
[1751226244919,0.74861029,107460.0,107450.0,1.33584115]
[1751226248628,0.48663759,107460.0,107450.0,1.33584115]
[1751226248831,0.74861029,107460.0,107450.0,1.33584115]
[1751226249723,0.48663759,107460.0,107450.0,1.33584115]
[1751226249924,0.74861029,107460.0,107450.0,1.33584115]
[1751226263826,0.74861029,107460.0,107450.0,1.33584116]
[1751226265726,0.74861029,107460.0,107450.0,1.07386846]
[1751226265916,0.74861029,107460.0,107450.0,1.33584116]
[1751226271026,0.74861029,107460.0,107450.0,1.07386846]
[1751226271227,0.74861029,107460.0,107450.0,1.33584116]
[1751226275329,1.25058299,107460.0,107450.0,0.36455566]
[1751226275531,1.25058299,107460.0,107450.0,1.07366816]
[1751226275934,0.72663759,107460.0,107450.0,1.07366816]
[1751226276233,0.72663759,107460.0,107450.0,1.33564086]
[1751226276234,0.99058299,107460.0,107450.0,1.33564086]
[1751226276735,0.99058299,107460.0,107450.0,1.07366816]
[1751226277329,0.99058299,107460.0,107450.0,0.92479566]
[1751226277529,0.99058299,107460.0,107450.0,1.07366816]
[1751226283743,0.99058299,107460.0,107450.0,1.33564086]
[1751226286646,0.99058299,107460.0,107450.0,1.07366816]
[1751226287346,0.99058299,107460.0,107450.0,0.92479566]
[1751226289247,0.1652542,107470.0,107450.0,1.28559566]
[1751226289444,0.4108317,107460.0,107450.0,1.75756836]
[1751226289640,0.5708317,107460.0,107450.0,1.75756836]
[1751226290144,0.5708317,107460.0,107450.0,1.90644086]
[1751226292951,0.6633317,107460.0,107450.0,1.90644086]
[1751226296152,0.6633317,107460.0,107450.0,1.8918956]